[Event "*** SCC Grand Prix: Titled Tuesday Blitz"]
[Site "Chess.com"]
[Date "2020.09.29"]
[Round "6"]
[White "BocharovD"]
[Black "Msb2"]
[Result "1-0"]
[WhiteElo "2811"]
[BlackElo "2913"]
[TimeControl "180+1"]
[EndTime "11:06:41 PDT"]
[Termination "BocharovD won on time"]

1. c4 {[%clk 0:03:00.9]} 1... e5 {[%clk 0:02:59.7]} 2. d3 {[%clk 0:03:00.7]}
2... Bb4+ {[%clk 0:02:58.9]} 3. Nd2 {[%clk 0:03:00.2]} 3... c5 {[%clk
0:02:59.3]} 4. Nf3 {[%clk 0:02:52.9]} 4... Nc6 {[%clk 0:02:55.8]} 5. g3 {[%clk
0:02:51.5]} 5... Nge7 {[%clk 0:02:55.6]} 6. Bg2 {[%clk 0:02:50.3]} 6... O-O
{[%clk 0:02:55.8]} 7. O-O {[%clk 0:02:43.6]} 7... Ba5 {[%clk 0:02:56.1]} 8. Qc2
{[%clk 0:02:27.8]} 8... d6 {[%clk 0:02:54.3]} 9. a3 {[%clk 0:02:26.9]} 9... h6
{[%clk 0:02:51]} 10. e3 {[%clk 0:02:21.6]} 10... Bf5 {[%clk 0:02:45.3]} 11. Rb1
{[%clk 0:02:19.7]} 11... Qd7 {[%clk 0:02:42.2]} 12. Ne4 {[%clk 0:02:18.9]} 12...
Rac8 {[%clk 0:02:24.9]} 13. Qa4 {[%clk 0:02:08.7]} 13... Bb6 {[%clk 0:01:42.3]}
14. b4 {[%clk 0:02:05.3]} 14... cxb4 {[%clk 0:01:42.6]} 15. axb4 {[%clk
0:02:05.2]} 15... d5 {[%clk 0:01:43.2]} 16. cxd5 {[%clk 0:02:00]} 16... Nxd5
{[%clk 0:01:44.1]} 17. b5 {[%clk 0:01:55.7]} 17... Nce7 {[%clk 0:01:40.7]} 18.
Nxe5 {[%clk 0:01:54.3]} 18... Qe6 {[%clk 0:01:38.9]} 19. Bb2 {[%clk 0:01:53.6]}
19... Bh3 {[%clk 0:01:25.4]} 20. Nc4 {[%clk 0:01:32.7]} 20... Bxg2 {[%clk
0:01:16]} 21. Kxg2 {[%clk 0:01:33.6]} 21... Nf5 {[%clk 0:01:16.6]} 22. Kh1
{[%clk 0:01:09.6]} 22... Rfe8 {[%clk 0:01:00.7]} 23. Qb3 {[%clk 0:01:05.3]}
23... Ndxe3 {[%clk 0:00:50.8]} 24. fxe3 {[%clk 0:00:54.9]} 24... Nxe3 {[%clk
0:00:51.3]} 25. Rf4 {[%clk 0:00:34.4]} 25... f5 {[%clk 0:00:39.4]} 26. Ned2
{[%clk 0:00:22.5]} 26... Qd5+ {[%clk 0:00:39.7]} 27. Nf3 {[%clk 0:00:17.6]}
27... g5 {[%clk 0:00:31.9]} 28. Qc3 {[%clk 0:00:16.7]} 28... Re7 {[%clk
0:00:15.3]} 29. Nxe3 {[%clk 0:00:16.3]} 29... Bxe3 {[%clk 0:00:05.1]} 30. Qh8+
{[%clk 0:00:15.7]} 30... Kf7 {[%clk 0:00:05.3]} 31. Qf6+ {[%clk 0:00:12.3]}
31... Ke8 {[%clk 0:00:05]} 32. Rxf5 {[%clk 0:00:12.5]} 32... Qxd3 {[%clk
0:00:03.6]} 33. Re1 {[%clk 0:00:07.4]} 33... Rc2 {[%clk 0:00:03.6]} 34. Re5
{[%clk 0:00:05.5]} 34... Rxe5 {[%clk 0:00:01.4]} 35. Qxe5+ {[%clk 0:00:04.9]}
35... Kd7 {[%clk 0:00:02.3]} 36. Qxe3 {[%clk 0:00:04]} 36... Qxe3 {[%clk
0:00:02.8]} 37. Rxe3 {[%clk 0:00:04.9]} 37... Rxb2 {[%clk 0:00:03.7]} 38. Re5
{[%clk 0:00:05.1]} 38... Kd6 {[%clk 0:00:03.9]} 39. Rf5 {[%clk 0:00:04.9]} 39...
Ke6 {[%clk 0:00:03.8]} 40. g4 {[%clk 0:00:05.3]} 40... Kd6 {[%clk 0:00:04.7]}
41. Ne5 {[%clk 0:00:05.4]} 41... Rb1+ {[%clk 0:00:04.1]} 42. Kg2 {[%clk
0:00:05.3]} 42... Rxb5 {[%clk 0:00:05]} 43. Nf7+ {[%clk 0:00:05]} 43... Kc6
{[%clk 0:00:05.6]} 44. Nd8+ {[%clk 0:00:05.6]} 44... Kb6 {[%clk 0:00:05.8]} 45.
Rf6+ {[%clk 0:00:05.7]} 45... Ka5 {[%clk 0:00:05.6]} 46. Rxh6 {[%clk 0:00:04.7]}
46... Kb4 {[%clk 0:00:05.8]} 47. Kf3 {[%clk 0:00:05]} 47... a5 {[%clk
0:00:06.2]} 48. Rh7 {[%clk 0:00:05.6]} 48... b6 {[%clk 0:00:05.9]} 49. Ra7
{[%clk 0:00:05.6]} 49... a4 {[%clk 0:00:06.4]} 50. Nc6+ {[%clk 0:00:05.9]} 50...
Kc5 {[%clk 0:00:06.7]} 51. Ne5 {[%clk 0:00:06]} 51... Kd4 {[%clk 0:00:04]} 52.
Nc6+ {[%clk 0:00:05.5]} 52... Kc5 {[%clk 0:00:04.1]} 53. Ne5 {[%clk 0:00:06.1]}
53... Kd4 {[%clk 0:00:04.6]} 54. Nf7 {[%clk 0:00:05.4]} 54... Rb3+ {[%clk
0:00:04.3]} 55. Ke2 {[%clk 0:00:05.8]} 55... b5 {[%clk 0:00:03.1]} 56. Nxg5
{[%clk 0:00:05.3]} 56... a3 {[%clk 0:00:03.7]} 57. Nf3+ {[%clk 0:00:05.1]} 57...
Kc3 {[%clk 0:00:04.1]} 58. Nd2 {[%clk 0:00:04.6]} 1-0

[Event "*** SCC Grand Prix: Titled Tuesday Blitz"]
[Site "Chess.com"]
[Date "2020.09.29"]
[Round "6"]
[White "SophieNikoladze"]
[Black "Gerodot71"]
[Result "1-0"]
[WhiteElo "2305"]
[BlackElo "2457"]
[TimeControl "180+1"]
[EndTime "11:06:43 PDT"]
[Termination "SophieNikoladze won by resignation"]

1. d4 {[%clk 0:03:00.9]} 1... Nf6 {[%clk 0:03:00]} 2. Nf3 {[%clk 0:03:00.4]}
2... d5 {[%clk 0:02:59.2]} 3. e3 {[%clk 0:02:59.9]} 3... c5 {[%clk 0:02:56.6]}
4. b3 {[%clk 0:02:59.5]} 4... Nc6 {[%clk 0:02:46.2]} 5. Bd3 {[%clk 0:02:58.1]}
5... cxd4 {[%clk 0:02:34.4]} 6. exd4 {[%clk 0:02:57.3]} 6... Bg4 {[%clk
0:02:33.4]} 7. Bb2 {[%clk 0:02:56]} 7... e6 {[%clk 0:02:32.9]} 8. O-O {[%clk
0:02:55.2]} 8... Be7 {[%clk 0:02:31.9]} 9. Nbd2 {[%clk 0:02:55.3]} 9... O-O
{[%clk 0:02:25.6]} 10. a3 {[%clk 0:02:55.3]} 10... Rc8 {[%clk 0:02:24.9]} 11.
Qe1 {[%clk 0:02:53.4]} 11... Bh5 {[%clk 0:02:20.2]} 12. Ne5 {[%clk 0:02:51.6]}
12... Nxe5 {[%clk 0:02:09.2]} 13. dxe5 {[%clk 0:02:50.5]} 13... Nd7 {[%clk
0:02:09.3]} 14. b4 {[%clk 0:02:35.8]} 14... Bg6 {[%clk 0:02:08.1]} 15. Bd4
{[%clk 0:02:35]} 15... Qc7 {[%clk 0:01:55.3]} 16. Bxg6 {[%clk 0:02:30]} 16...
hxg6 {[%clk 0:01:56.2]} 17. c3 {[%clk 0:02:30.1]} 17... Nb6 {[%clk 0:01:52.3]}
18. f4 {[%clk 0:02:28.2]} 18... Nc4 {[%clk 0:01:52]} 19. Nf3 {[%clk 0:02:22.6]}
19... b6 {[%clk 0:01:42.6]} 20. g4 {[%clk 0:02:21.5]} 20... a5 {[%clk
0:01:34.5]} 21. Qg3 {[%clk 0:02:13.3]} 21... axb4 {[%clk 0:01:12.8]} 22. axb4
{[%clk 0:02:12.4]} 22... Ra8 {[%clk 0:01:12.7]} 23. Kh1 {[%clk 0:01:46.3]} 23...
Qb7 {[%clk 0:01:08.6]} 24. f5 {[%clk 0:01:36.8]} 24... Rxa1 {[%clk 0:01:00.7]}
25. Rxa1 {[%clk 0:01:35.7]} 25... Ra8 {[%clk 0:01:01.3]} 26. Rg1 {[%clk
0:01:34.5]} 26... Ra2 {[%clk 0:00:52.3]} 27. f6 {[%clk 0:01:30.7]} 27... gxf6
{[%clk 0:00:24.1]} 28. exf6 {[%clk 0:01:28.5]} 28... Bd6 {[%clk 0:00:23.5]} 29.
Qh3 {[%clk 0:01:26.5]} 29... Qc7 {[%clk 0:00:16.3]} 30. Qh6 {[%clk 0:01:19.3]}
30... Bf8 {[%clk 0:00:15.1]} 31. Qh4 {[%clk 0:01:17.5]} 31... Bd6 {[%clk
0:00:14.5]} 32. Rg2 {[%clk 0:01:11.1]} 32... Ra1+ {[%clk 0:00:14.3]} 33. Rg1
{[%clk 0:01:11.2]} 33... Ra2 {[%clk 0:00:14.6]} 34. h3 {[%clk 0:01:07.9]} 34...
Bf4 {[%clk 0:00:12.6]} 35. g5 {[%clk 0:00:57.1]} 35... Bd6 {[%clk 0:00:11.8]}
36. Qg4 {[%clk 0:00:54]} 36... Ne5 {[%clk 0:00:08.9]} 37. Bxe5 {[%clk
0:00:35.8]} 37... Bxe5 {[%clk 0:00:09.8]} 38. Qh4 {[%clk 0:00:33.1]} 38... Bd6
{[%clk 0:00:08]} 39. Qh6 {[%clk 0:00:26.2]} 39... Bf8 {[%clk 0:00:07.6]} 40. Qh4
{[%clk 0:00:24.9]} 40... Qxc3 {[%clk 0:00:07.6]} 41. Qg3 {[%clk 0:00:23.4]}
41... Ra3 {[%clk 0:00:07.2]} 42. Kg2 {[%clk 0:00:20.5]} 42... Qd3 {[%clk
0:00:07.5]} 43. Rc1 {[%clk 0:00:19.8]} 43... Ra2+ {[%clk 0:00:07.6]} 44. Kh1
{[%clk 0:00:19.2]} 44... Ra3 {[%clk 0:00:07.5]} 45. Kg2 {[%clk 0:00:18.1]} 45...
Ra2+ {[%clk 0:00:07.8]} 46. Kh1 {[%clk 0:00:18.1]} 46... Qe4 {[%clk 0:00:07.7]}
47. Rc8 {[%clk 0:00:15.7]} 47... Ra3 {[%clk 0:00:06.3]} 48. Kg2 {[%clk
0:00:14.5]} 48... Ra2+ {[%clk 0:00:05.7]} 49. Kh1 {[%clk 0:00:14.1]} 49... Qb1+
{[%clk 0:00:05.3]} 50. Ng1 {[%clk 0:00:13.4]} 50... Qe4+ {[%clk 0:00:05.3]} 51.
Qf3 {[%clk 0:00:11.5]} 51... Qxf3+ {[%clk 0:00:04.7]} 52. Nxf3 {[%clk
0:00:11.6]} 52... Rb2 {[%clk 0:00:05.6]} 53. Ne5 {[%clk 0:00:11.2]} 53... Rxb4
{[%clk 0:00:03.7]} 54. Nd7 {[%clk 0:00:11.3]} 54... Rh4 {[%clk 0:00:03.8]} 55.
Rxf8+ {[%clk 0:00:11]} 55... Kh7 {[%clk 0:00:04.3]} 56. Rxf7+ {[%clk 0:00:11.1]}
56... Kg8 {[%clk 0:00:05.2]} 57. Rg7+ {[%clk 0:00:10.3]} 57... Kh8 {[%clk
0:00:05.9]} 58. Rxg6 {[%clk 0:00:10.5]} 58... Rxh3+ {[%clk 0:00:06.1]} 59. Kg2
{[%clk 0:00:10.8]} 59... Rh4 {[%clk 0:00:06]} 60. f7 {[%clk 0:00:10.7]} 60...
Rf4 {[%clk 0:00:06.5]} 61. Rf6 {[%clk 0:00:11]} 1-0

[Event "*** SCC Grand Prix: Titled Tuesday Blitz"]
[Site "Chess.com"]
[Date "2020.09.29"]
[Round "6"]
[White "DarZay"]
[Black "GMaka"]
[Result "0-1"]
[WhiteElo "2098"]
[BlackElo "2365"]
[TimeControl "180+1"]
[EndTime "11:06:43 PDT"]
[Termination "GMaka won on time"]

1. e4 {[%clk 0:03:00]} 1... c6 {[%clk 0:02:58.6]} 2. d4 {[%clk 0:02:59.4]} 2...
d5 {[%clk 0:02:59.5]} 3. Nc3 {[%clk 0:02:59.1]} 3... dxe4 {[%clk 0:02:59.7]} 4.
Nxe4 {[%clk 0:02:59.4]} 4... Nf6 {[%clk 0:03:00.5]} 5. Ng3 {[%clk 0:02:46.2]}
5... Bf5 {[%clk 0:02:53.5]} 6. Nxf5 {[%clk 0:02:45.1]} 6... Qa5+ {[%clk
0:02:53.6]} 7. Bd2 {[%clk 0:02:39.1]} 7... Qxf5 {[%clk 0:02:54.5]} 8. Nf3 {[%clk
0:02:37.6]} 8... e6 {[%clk 0:02:52.1]} 9. Bd3 {[%clk 0:02:37.4]} 9... Qg4 {[%clk
0:02:48]} 10. O-O {[%clk 0:02:31.6]} 10... Bd6 {[%clk 0:02:44.5]} 11. h3 {[%clk
0:02:30.1]} 11... Qh5 {[%clk 0:02:44.5]} 12. c4 {[%clk 0:02:11.6]} 12... Nbd7
{[%clk 0:02:36.6]} 13. c5 {[%clk 0:01:53.2]} 13... Bc7 {[%clk 0:02:26.7]} 14.
Be2 {[%clk 0:01:41.8]} 14... O-O {[%clk 0:01:36.1]} 15. Ne5 {[%clk 0:01:25.2]}
15... Qh4 {[%clk 0:01:27.8]} 16. Nf3 {[%clk 0:01:06.8]} 16... Qe4 {[%clk
0:01:21.7]} 17. Bg5 {[%clk 0:00:53.9]} 17... h6 {[%clk 0:01:06.2]} 18. Bd3
{[%clk 0:00:49.1]} 18... Qd5 {[%clk 0:01:05]} 19. Be3 {[%clk 0:00:48.3]} 19...
e5 {[%clk 0:00:53.8]} 20. b3 {[%clk 0:00:34.2]} 20... e4 {[%clk 0:00:29.6]} 21.
Bc4 {[%clk 0:00:34]} 21... Qf5 {[%clk 0:00:30.1]} 22. Nh4 {[%clk 0:00:32.8]}
22... Qh7 {[%clk 0:00:29.1]} 23. g4 {[%clk 0:00:28.2]} 23... Nd5 {[%clk
0:00:24.2]} 24. Nf5 {[%clk 0:00:25.1]} 24... Rae8 {[%clk 0:00:22.2]} 25. Qd2
{[%clk 0:00:23.2]} 25... Nxe3 {[%clk 0:00:19.1]} 26. fxe3 {[%clk 0:00:21.2]}
26... Nf6 {[%clk 0:00:20]} 27. Qg2 {[%clk 0:00:15.7]} 27... Nd5 {[%clk
0:00:19.6]} 28. Rae1 {[%clk 0:00:13.7]} 28... g6 {[%clk 0:00:19.3]} 29. Nh4
{[%clk 0:00:11.1]} 29... Qg7 {[%clk 0:00:18.3]} 30. Kh1 {[%clk 0:00:09.5]} 30...
Bd8 {[%clk 0:00:17.6]} 31. Qg3 {[%clk 0:00:08.7]} 31... Bxh4 {[%clk 0:00:17.2]}
32. Qxh4 {[%clk 0:00:08.8]} 32... g5 {[%clk 0:00:17.7]} 33. Qg3 {[%clk
0:00:09.1]} 33... f5 {[%clk 0:00:17.8]} 34. Rxf5 {[%clk 0:00:08.1]} 34... Rxf5
{[%clk 0:00:17.6]} 35. gxf5 {[%clk 0:00:08.5]} 35... Qf6 {[%clk 0:00:18]} 36.
Qg4 {[%clk 0:00:07.4]} 36... Re7 {[%clk 0:00:17.1]} 37. Bxd5+ {[%clk 0:00:07.5]}
37... cxd5 {[%clk 0:00:17.1]} 38. Rf1 {[%clk 0:00:07.8]} 38... Kh7 {[%clk
0:00:16]} 39. Qg3 {[%clk 0:00:07.1]} 39... h5 {[%clk 0:00:15.5]} 40. Qd6 {[%clk
0:00:07.1]} 40... Qxd6 {[%clk 0:00:15.2]} 41. cxd6 {[%clk 0:00:07.3]} 41... Rd7
{[%clk 0:00:14.8]} 42. Rc1 {[%clk 0:00:07.4]} 42... Kh6 {[%clk 0:00:09.3]} 43.
Rc7 {[%clk 0:00:06.5]} 43... Rxd6 {[%clk 0:00:09.8]} 44. Rxb7 {[%clk 0:00:06.6]}
44... Rf6 {[%clk 0:00:07.6]} 45. Rxa7 {[%clk 0:00:06.7]} 45... Rxf5 {[%clk
0:00:08.1]} 46. b4 {[%clk 0:00:05.9]} 46... Rf3 {[%clk 0:00:07.4]} 47. b5 {[%clk
0:00:06.1]} 47... Rxh3+ {[%clk 0:00:07.8]} 48. Kg2 {[%clk 0:00:06]} 48... Rxe3
{[%clk 0:00:06.5]} 49. b6 {[%clk 0:00:05.6]} 49... Re2+ {[%clk 0:00:06.1]} 50.
Kf1 {[%clk 0:00:05.7]} 50... Rb2 {[%clk 0:00:07]} 51. a4 {[%clk 0:00:05.3]}
51... Rxb6 {[%clk 0:00:05.1]} 52. a5 {[%clk 0:00:03.4]} 52... Rb2 {[%clk
0:00:05.7]} 53. Rd7 {[%clk 0:00:03.1]} 53... Ra2 {[%clk 0:00:06.6]} 54. Rxd5
{[%clk 0:00:02.8]} 54... e3 {[%clk 0:00:07.5]} 55. Rd6+ {[%clk 0:00:02.3]} 55...
Kg7 {[%clk 0:00:08]} 56. Rd5 {[%clk 0:00:02.1]} 56... Kg6 {[%clk 0:00:08]} 57.
Re5 {[%clk 0:00:01.2]} 57... e2+ {[%clk 0:00:08]} 0-1

[Event "*** SCC Grand Prix: Titled Tuesday Blitz"]
[Site "Chess.com"]
[Date "2020.09.29"]
[Round "6"]
[White "zajka-molotok"]
[Black "Ermito2020"]
[Result "1/2-1/2"]
[WhiteElo "2498"]
[BlackElo "2673"]
[TimeControl "180+1"]
[EndTime "11:06:46 PDT"]
[Termination "Game drawn - insufficient material"]

1. d4 {[%clk 0:03:00.9]} 1... e6 {[%clk 0:02:59.5]} 2. c4 {[%clk 0:03:00.5]}
2... f5 {[%clk 0:03:00]} 3. Nc3 {[%clk 0:02:59.7]} 3... Nf6 {[%clk 0:03:00.6]}
4. g3 {[%clk 0:02:54]} 4... Be7 {[%clk 0:03:00.6]} 5. Bg2 {[%clk 0:02:54.1]}
5... O-O {[%clk 0:02:59.6]} 6. Nf3 {[%clk 0:02:54.2]} 6... d5 {[%clk 0:02:58.8]}
7. O-O {[%clk 0:02:50.2]} 7... c6 {[%clk 0:02:58.9]} 8. b3 {[%clk 0:02:43.6]}
8... Ne4 {[%clk 0:02:58.2]} 9. Nxe4 {[%clk 0:02:31.1]} 9... fxe4 {[%clk
0:02:56.2]} 10. Ne5 {[%clk 0:02:31.7]} 10... Nd7 {[%clk 0:02:54.4]} 11. Bf4
{[%clk 0:02:29.8]} 11... Bf6 {[%clk 0:02:31.7]} 12. f3 {[%clk 0:01:49.2]} 12...
exf3 {[%clk 0:02:29.6]} 13. exf3 {[%clk 0:01:46.7]} 13... Nxe5 {[%clk
0:02:29.2]} 14. Bxe5 {[%clk 0:01:40.4]} 14... Bxe5 {[%clk 0:02:26.9]} 15. dxe5
{[%clk 0:01:41.3]} 15... Bd7 {[%clk 0:02:22.8]} 16. f4 {[%clk 0:01:35.8]} 16...
Be8 {[%clk 0:02:22.8]} 17. Qg4 {[%clk 0:01:28]} 17... Qe7 {[%clk 0:02:21]} 18.
Bh3 {[%clk 0:01:22.6]} 18... Bf7 {[%clk 0:02:20.2]} 19. cxd5 {[%clk 0:01:11.5]}
19... cxd5 {[%clk 0:02:19.6]} 20. Rac1 {[%clk 0:01:11.3]} 20... Rae8 {[%clk
0:02:07.7]} 21. Rf2 {[%clk 0:01:03.8]} 21... Bg6 {[%clk 0:02:06.8]} 22. Qd1
{[%clk 0:01:02.3]} 22... Be4 {[%clk 0:02:00.4]} 23. Qd4 {[%clk 0:00:55.2]} 23...
b6 {[%clk 0:01:55.3]} 24. Bg2 {[%clk 0:00:53.7]} 24... Bf5 {[%clk 0:01:53.5]}
25. Rc3 {[%clk 0:00:45]} 25... Rc8 {[%clk 0:01:52.3]} 26. Rf1 {[%clk 0:00:44.4]}
26... Rxc3 {[%clk 0:01:49.8]} 27. Qxc3 {[%clk 0:00:45.1]} 27... Qc5+ {[%clk
0:01:50.4]} 28. Qxc5 {[%clk 0:00:44.3]} 28... bxc5 {[%clk 0:01:51.3]} 29. Rc1
{[%clk 0:00:44]} 29... Rc8 {[%clk 0:01:51.2]} 30. Kf2 {[%clk 0:00:43.3]} 30...
Kf7 {[%clk 0:01:49.3]} 31. Ke3 {[%clk 0:00:43.1]} 31... Ke7 {[%clk 0:01:49.5]}
32. Bf3 {[%clk 0:00:37.5]} 32... a5 {[%clk 0:01:49.8]} 33. g4 {[%clk 0:00:36.5]}
33... Bg6 {[%clk 0:01:50.2]} 34. f5 {[%clk 0:00:31.9]} 34... exf5 {[%clk
0:01:47.1]} 35. gxf5 {[%clk 0:00:30.5]} 35... Bxf5 {[%clk 0:01:47.1]} 36. Bxd5
{[%clk 0:00:30.1]} 36... g5 {[%clk 0:01:42.2]} 37. Rf1 {[%clk 0:00:25.6]} 37...
Bg6 {[%clk 0:01:37.6]} 38. Rf6 {[%clk 0:00:23.4]} 38... Rd8 {[%clk 0:01:34.7]}
39. Bc4 {[%clk 0:00:22.3]} 39... Rd4 {[%clk 0:01:28]} 40. Re6+ {[%clk
0:00:18.8]} 40... Kd7 {[%clk 0:01:27.4]} 41. Ra6 {[%clk 0:00:15.9]} 41... Re4+
{[%clk 0:01:27.6]} 42. Kf3 {[%clk 0:00:15.3]} 42... Rxe5 {[%clk 0:01:28.5]} 43.
Rxa5 {[%clk 0:00:15.1]} 43... h5 {[%clk 0:01:27.8]} 44. Ra7+ {[%clk 0:00:14.3]}
44... Kd8 {[%clk 0:01:19.2]} 45. a4 {[%clk 0:00:14.3]} 45... Be4+ {[%clk
0:01:16.2]} 46. Kf2 {[%clk 0:00:13.4]} 46... Re7 {[%clk 0:01:11.7]} 47. Ra5
{[%clk 0:00:11.8]} 47... Rc7 {[%clk 0:01:07.4]} 48. Ra6 {[%clk 0:00:11.1]} 48...
g4 {[%clk 0:01:00.3]} 49. Rh6 {[%clk 0:00:10.4]} 49... Rh7 {[%clk 0:00:56.2]}
50. Re6 {[%clk 0:00:08.8]} 50... Bc2 {[%clk 0:00:54.3]} 51. a5 {[%clk
0:00:07.8]} 51... Kc7 {[%clk 0:00:53.8]} 52. a6 {[%clk 0:00:07.6]} 52... Kb8
{[%clk 0:00:54.2]} 53. Re8+ {[%clk 0:00:07.1]} 53... Ka7 {[%clk 0:00:54]} 54.
Rg8 {[%clk 0:00:05.9]} 54... Be4 {[%clk 0:00:46.1]} 55. Rg5 {[%clk 0:00:05.7]}
55... Kb6 {[%clk 0:00:46.1]} 56. Re5 {[%clk 0:00:04.9]} 56... Bc6 {[%clk
0:00:45.3]} 57. Re6 {[%clk 0:00:04.7]} 57... Rc7 {[%clk 0:00:41.7]} 58. Rh6
{[%clk 0:00:04.1]} 58... Ka5 {[%clk 0:00:40.5]} 59. Kg3 {[%clk 0:00:03.7]} 59...
Bb5 {[%clk 0:00:39.7]} 60. Rxh5 {[%clk 0:00:03.4]} 60... Bxc4 {[%clk 0:00:39.3]}
61. bxc4 {[%clk 0:00:04.2]} 61... Kxa6 {[%clk 0:00:39]} 62. Kxg4 {[%clk
0:00:04.6]} 62... Ka5 {[%clk 0:00:39.6]} 63. Rh4 {[%clk 0:00:04.2]} 63... Kb4
{[%clk 0:00:40.5]} 64. Kf5 {[%clk 0:00:04.6]} 64... Rf7+ {[%clk 0:00:39.7]} 65.
Kg6 {[%clk 0:00:04.4]} 65... Rf2 {[%clk 0:00:40.6]} 66. h3 {[%clk 0:00:04]}
66... Rc2 {[%clk 0:00:39]} 67. Rg4 {[%clk 0:00:03.5]} 67... Rxc4 {[%clk
0:00:37.9]} 68. Rxc4+ {[%clk 0:00:03.3]} 68... Kxc4 {[%clk 0:00:38.8]} 69. h4
{[%clk 0:00:03.8]} 69... Kd3 {[%clk 0:00:38.4]} 70. h5 {[%clk 0:00:04.2]} 70...
c4 {[%clk 0:00:39.3]} 71. h6 {[%clk 0:00:04.8]} 71... c3 {[%clk 0:00:40.2]} 72.
h7 {[%clk 0:00:05.4]} 72... c2 {[%clk 0:00:41.1]} 73. h8=Q {[%clk 0:00:05.3]}
73... c1=Q {[%clk 0:00:41.1]} 74. Qd8+ {[%clk 0:00:05.5]} 74... Ke2 {[%clk
0:00:40.7]} 75. Qe7+ {[%clk 0:00:05.8]} 75... Kd3 {[%clk 0:00:41.1]} 76. Qd6+
{[%clk 0:00:06]} 76... Ke2 {[%clk 0:00:41.3]} 77. Qe5+ {[%clk 0:00:06.3]} 77...
Kd3 {[%clk 0:00:41.8]} 78. Qd5+ {[%clk 0:00:06.7]} 78... Ke2 {[%clk 0:00:42]}
79. Qe4+ {[%clk 0:00:06.9]} 79... Kf2 {[%clk 0:00:42.4]} 80. Qf5+ {[%clk
0:00:06.7]} 80... Ke2 {[%clk 0:00:42.2]} 81. Qe4+ {[%clk 0:00:06.8]} 81... Qe3
{[%clk 0:00:41.6]} 82. Qxe3+ {[%clk 0:00:06.8]} 82... Kxe3 {[%clk 0:00:42.5]}
1/2-1/2

[Event "*** SCC Grand Prix: Titled Tuesday Blitz"]
[Site "Chess.com"]
[Date "2020.09.29"]
[Round "6"]
[White "TheMagnet"]
[Black "Oligan22"]
[Result "0-1"]
[WhiteElo "2570"]
[BlackElo "2419"]
[TimeControl "180+1"]
[EndTime "11:06:46 PDT"]
[Termination "Oligan22 won by checkmate"]

1. d4 {[%clk 0:03:00.9]} 1... d5 {[%clk 0:02:59.8]} 2. c4 {[%clk 0:02:58.5]}
2... dxc4 {[%clk 0:03:00.7]} 3. Nf3 {[%clk 0:02:57.2]} 3... a6 {[%clk
0:02:59.9]} 4. e3 {[%clk 0:02:52.6]} 4... b5 {[%clk 0:02:58.7]} 5. a4 {[%clk
0:02:53.1]} 5... Bb7 {[%clk 0:02:52.6]} 6. b3 {[%clk 0:02:52]} 6... e6 {[%clk
0:02:37.5]} 7. axb5 {[%clk 0:02:39.9]} 7... axb5 {[%clk 0:02:36.6]} 8. Rxa8
{[%clk 0:02:38.9]} 8... Bxa8 {[%clk 0:02:37.5]} 9. bxc4 {[%clk 0:02:39.4]} 9...
bxc4 {[%clk 0:02:38.3]} 10. Bxc4 {[%clk 0:02:37]} 10... Nd7 {[%clk 0:02:36.9]}
11. O-O {[%clk 0:02:35.8]} 11... Ngf6 {[%clk 0:02:33.8]} 12. Ba3 {[%clk
0:02:16.1]} 12... Bxa3 {[%clk 0:02:32.1]} 13. Nxa3 {[%clk 0:02:17]} 13... O-O
{[%clk 0:02:30.3]} 14. Be2 {[%clk 0:02:15.6]} 14... c5 {[%clk 0:02:28.2]} 15.
Nc4 {[%clk 0:02:12.4]} 15... cxd4 {[%clk 0:02:26]} 16. Nxd4 {[%clk 0:02:12.7]}
16... Nc5 {[%clk 0:02:19.5]} 17. Bf3 {[%clk 0:02:10.4]} 17... Nfe4 {[%clk
0:02:10.9]} 18. Nb5 {[%clk 0:01:54.3]} 18... Bd5 {[%clk 0:02:02.8]} 19. Qc2
{[%clk 0:01:30.5]} 19... Qg5 {[%clk 0:01:27.2]} 20. Rd1 {[%clk 0:00:44.7]} 20...
Nc3 {[%clk 0:01:06.6]} 21. h4 {[%clk 0:00:33.1]} 21... Qxh4 {[%clk 0:01:06.3]}
22. Qxc3 {[%clk 0:00:17.5]} 22... Qxc4 {[%clk 0:01:06.1]} 23. Qxc4 {[%clk
0:00:15.2]} 23... Bxc4 {[%clk 0:01:07]} 24. Nd6 {[%clk 0:00:15.4]} 24... Bb3
{[%clk 0:01:01.3]} 25. Rc1 {[%clk 0:00:14.6]} 25... Nd7 {[%clk 0:00:59.5]} 26.
Rc7 {[%clk 0:00:14.4]} 26... Ne5 {[%clk 0:00:59.6]} 27. Bh5 {[%clk 0:00:13]}
27... g6 {[%clk 0:00:59.5]} 28. Be2 {[%clk 0:00:13.1]} 28... g5 {[%clk
0:00:40.4]} 29. f4 {[%clk 0:00:07.7]} 29... gxf4 {[%clk 0:00:39.4]} 30. exf4
{[%clk 0:00:08.6]} 30... Ng6 {[%clk 0:00:39.6]} 31. g3 {[%clk 0:00:09.1]} 31...
Bd5 {[%clk 0:00:32.8]} 32. Kf2 {[%clk 0:00:09.3]} 32... Kg7 {[%clk 0:00:32.6]}
33. Bd3 {[%clk 0:00:07.6]} 33... Kf6 {[%clk 0:00:32.2]} 34. Be4 {[%clk
0:00:05.5]} 34... Bxe4 {[%clk 0:00:20.2]} 35. Nxe4+ {[%clk 0:00:06.4]} 35... Kg7
{[%clk 0:00:20.6]} 36. Ng5 {[%clk 0:00:06.4]} 36... Kf6 {[%clk 0:00:18.1]} 37.
Nxh7+ {[%clk 0:00:06.3]} 37... Kg7 {[%clk 0:00:17.1]} 38. Nxf8 {[%clk
0:00:07.2]} 38... Nxf8 {[%clk 0:00:17.4]} 39. Kf3 {[%clk 0:00:07.1]} 39... Kf6
{[%clk 0:00:17.3]} 40. g4 {[%clk 0:00:06.3]} 40... Ng6 {[%clk 0:00:17.6]} 41.
Ke4 {[%clk 0:00:06]} 41... Kg7 {[%clk 0:00:15.8]} 42. Ra7 {[%clk 0:00:05.2]}
42... Kf6 {[%clk 0:00:15.7]} 43. Ra6 {[%clk 0:00:04.9]} 43... Kg7 {[%clk
0:00:15.6]} 44. Rb6 {[%clk 0:00:05.4]} 44... Kf6 {[%clk 0:00:14.5]} 45. f5
{[%clk 0:00:05.5]} 45... Ne7 {[%clk 0:00:12.2]} 46. fxe6 {[%clk 0:00:05.4]}
46... fxe6 {[%clk 0:00:12.6]} 47. Ra6 {[%clk 0:00:05.6]} 47... Ng6 {[%clk
0:00:11.2]} 48. Ra5 {[%clk 0:00:05.2]} 48... Ne7 {[%clk 0:00:11.1]} 49. Kf3
{[%clk 0:00:04.3]} 49... Ng6 {[%clk 0:00:10.6]} 50. Kg3 {[%clk 0:00:04.6]} 50...
Ne7 {[%clk 0:00:10.6]} 51. Kh4 {[%clk 0:00:04.3]} 51... Ng6+ {[%clk 0:00:10.3]}
52. Kh5 {[%clk 0:00:04.7]} 52... Ne7 {[%clk 0:00:09.6]} 53. g5+ {[%clk
0:00:03.7]} 53... Kf7 {[%clk 0:00:09.2]} 54. Ra7 {[%clk 0:00:03.3]} 54... e5
{[%clk 0:00:08.8]} 55. g6+ {[%clk 0:00:02.6]} 55... Kf6 {[%clk 0:00:09.2]} 56.
Kh6 {[%clk 0:00:01.1]} 56... Nf5+ {[%clk 0:00:07.3]} 57. Kh7 {[%clk 0:00:01.1]}
57... e4 {[%clk 0:00:06.2]} 58. Rf7+ {[%clk 0:00:01.2]} 58... Kg5 {[%clk
0:00:06.2]} 59. Rxf5+ {[%clk 0:00:02.1]} 59... Kxf5 {[%clk 0:00:07.1]} 60. g7
{[%clk 0:00:02.9]} 60... e3 {[%clk 0:00:08]} 61. g8=N {[%clk 0:00:02.8]} 61...
e2 {[%clk 0:00:08.9]} 62. Nh6+ {[%clk 0:00:03]} 62... Kf4 {[%clk 0:00:09.8]} 63.
Nf7 {[%clk 0:00:01.7]} 63... e1=Q {[%clk 0:00:10.7]} 64. Ng5 {[%clk 0:00:02.6]}
64... Qe5 {[%clk 0:00:10.3]} 65. Nh3+ {[%clk 0:00:03.5]} 65... Kg3 {[%clk
0:00:10.4]} 66. Ng5 {[%clk 0:00:04.4]} 66... Qxg5 {[%clk 0:00:10.2]} 67. Kh8
{[%clk 0:00:05]} 67... Kf4 {[%clk 0:00:11.1]} 68. Kh7 {[%clk 0:00:05.9]} 68...
Kf5 {[%clk 0:00:11.8]} 69. Kh8 {[%clk 0:00:06.8]} 69... Kf6 {[%clk 0:00:12.4]}
70. Kh7 {[%clk 0:00:07.7]} 70... Qg7# {[%clk 0:00:13.3]} 0-1